[Event "FIDE World Rapid Chess Championship 2021"]
[White "Kanarek, Marcel"]
[Black "Sadzikowski, Daniel"]
[WhiteFideId "1126822"]
[BlackFideId "1132253"]
[WhiteElo "2296"]
[BlackElo "2414"]
[Result "1-0"]
[Round "03"]
[TimeControl "900+10"]
[Date "2021.12.26"]
[WhiteClock "0:00:23"]
[BlackClock "0:00:12"]

1. Nf3 {[%clk 0:15:17]}  Nf6 {[%clk 0:15:00]} 2. g3 {[%clk 0:15:17]}  d5 {[%clk 0:15:00]} 3. Bg2 {[%clk 0:15:17]}  c6 {[%clk 0:15:00]} 4. O-O {[%clk 0:15:17]}  Bf5 {[%clk 0:15:00]} 5. d3 {[%clk 0:15:41]}  e6 {[%clk 0:15:45]} 6. Nbd2 {[%clk 0:15:41]}  h6 {[%clk 0:15:45]} 7. Re1 {[%clk 0:15:41]}  Bh7 {[%clk 0:15:45]} 8. b3 {[%clk 0:15:41]}  Be7 {[%clk 0:15:45]} 9. Bb2 {[%clk 0:15:41]}  a5 {[%clk 0:15:45]} 10. a3 {[%clk 0:15:41]}  O-O {[%clk 0:15:45]} 11. e4 {[%clk 0:15:41]}  a4 {[%clk 0:15:44]} 12. b4 {[%clk 0:15:12]}  c5 {[%clk 0:15:22]} 13. b5 {[%clk 0:14:55]}  Nbd7 {[%clk 0:14:35]} 14. c4 {[%clk 0:13:23]}  dxc4 {[%clk 0:14:35]} 15. dxc4 {[%clk 0:12:33]}  Nb6 {[%clk 0:13:55]} 16. Qe2 {[%clk 0:12:33]}  Qc7 {[%clk 0:14:02]} 17. e5 {[%clk 0:11:35]}  Nfd7 {[%clk 0:12:32]} 18. Ne4 {[%clk 0:10:11]}  Rfd8 {[%clk 0:12:39]} 19. h4 {[%clk 0:10:11]}  Nf8 {[%clk 0:12:01]} 20. Rac1 {[%clk 0:09:38]}  Rd7 {[%clk 0:12:01]} 21. Qe3 {[%clk 0:09:30]}  Bxe4 {[%clk 0:11:27]} 22. Qxe4 {[%clk 0:09:17]}  Rad8 {[%clk 0:11:27]} 23. Bc3 {[%clk 0:09:06]}  Qb8 {[%clk 0:06:33]} 24. Nh2 {[%clk 0:09:06]}  h5 {[%clk 0:04:55]} 25. Bf3 {[%clk 0:09:09]}  g6 {[%clk 0:02:38]} 26. g4 {[%clk 0:09:09]}  hxg4 {[%clk 0:02:40]} 27. Nxg4 {[%clk 0:08:06]}  Rd4 {[%clk 0:02:40]} 28. Bxd4 {[%clk 0:08:06]}  Rxd4 {[%clk 0:02:40]} 29. Qe2 {[%clk 0:08:06]}  Bxh4 {[%clk 0:02:40]} 30. Red1 {[%clk 0:07:38]}  Rf4 {[%clk 0:02:50]} 31. Kg2 {[%clk 0:07:38]}  Nbd7 {[%clk 0:02:40]} 32. Rc3 {[%clk 0:06:51]}  Bg5 {[%clk 0:02:40]} 33. Rh1 {[%clk 0:06:37]}  Rf5 {[%clk 0:01:35]} 34. Be4 {[%clk 0:06:37]}  Rf4 {[%clk 0:01:35]} 35. Rch3 {[%clk 0:04:31]}  Kg7 {[%clk 0:01:42]} 36. Bd3 {[%clk 0:04:09]}  Qc7 {[%clk 0:01:38]} 37. Rh8 {[%clk 0:02:32]}  Qa5 {[%clk 0:01:15]} 38. R8h3 {[%clk 0:01:26]}  Qc3 {[%clk 0:00:54]} 39. Rg3 {[%clk 0:00:32]}  Qd4 {[%clk 0:00:54]} 40. Rd1 {[%clk 0:00:32]}  Bh4 {[%clk 0:00:54]} 41. Bxg6 {[%clk 0:00:15]}  Qxc4 {[%clk 0:00:22]} 42. Bd3 {[%clk 0:00:15]}  Qd5+ {[%clk 0:00:22]} 43. Kh3 {[%clk 0:00:15]}  Bxg3 {[%clk 0:00:22]} 44. fxg3 {[%clk 0:00:15]}  Rd4 {[%clk 0:00:22]} 45. Qe3 {[%clk 0:00:15]}  Rxg4 {[%clk 0:00:22]} 46. Kxg4 {[%clk 0:00:32]}  Nxe5+ {[%clk 0:00:22]} 47. Kh3 {[%clk 0:00:32]}  Neg6 {[%clk 0:00:22]} 48. Be2 {[%clk 0:00:32]}  Qf5+ {[%clk 0:00:25]} 49. Bg4 {[%clk 0:00:21]}  Qc2 {[%clk 0:00:25]} 50. Rc1 {[%clk 0:00:21]}  Qb3 {[%clk 0:00:25]} 51. Qxc5 {[%clk 0:00:21]}  Nf4+ {[%clk 0:00:25]} 52. Kh2 {[%clk 0:00:21]}  Nd5 {[%clk 0:00:25]} 53. Qd4+ {[%clk 0:00:21]}  f6 {[%clk 0:00:25]} 54. Bh3 {[%clk 0:00:21]}  Qxb5 {[%clk 0:00:25]} 55. Bg2 {[%clk 0:00:21]}  Ne7 {[%clk 0:00:25]} 56. Rc7 {[%clk 0:00:21]}  Ng6 {[%clk 0:00:28]} 57. Rxb7 {[%clk 0:00:29]}  Qh5+ {[%clk 0:00:28]} 58. Kg1 {[%clk 0:00:29]}  Kf7 {[%clk 0:00:28]} 59. Qxa4 {[%clk 0:00:29]}  Qc5+ {[%clk 0:00:28]} 60. Kf1 {[%clk 0:00:29]}  Qc1+ {[%clk 0:00:28]} 61. Ke2 {[%clk 0:00:29]}  Ne5 {[%clk 0:00:28]} 62. Qe4 {[%clk 0:00:40]}  Ke8 {[%clk 0:01:02]} 63. Rb8+ {[%clk 0:00:40]}  Kd7 {[%clk 0:01:02]} 64. Qb7+ {[%clk 0:00:40]}  Kd6 {[%clk 0:00:12]} 65. Rd8+ {[%clk 0:00:23]} 1-0


[Site "http://www.Chess.com"]

[Event "FIDE World Rapid Chess Championship 2021"]
[White "Alekseenko, Kirill"]
[Black "Duda, Jan-Krzysztof"]
[WhiteFideId "4135539"]
[BlackFideId "1170546"]
[WhiteElo "2637"]
[BlackElo "2801"]
[Result "0-1"]
[Round "04"]
[TimeControl "900+10"]
[Date "2021.12.26"]
[WhiteClock "0:02:38"]
[BlackClock "0:00:35"]

1. e4 {[%clk 0:15:31]}  e5 {[%clk 0:15:27]} 2. Nf3 {[%clk 0:15:31]}  Nc6 {[%clk 0:15:27]} 3. Bb5 {[%clk 0:15:31]}  a6 {[%clk 0:15:27]} 4. Ba4 {[%clk 0:15:31]}  Nf6 {[%clk 0:15:27]} 5. Nc3 {[%clk 0:15:31]}  b5 {[%clk 0:15:43]} 6. Bb3 {[%clk 0:15:42]}  Be7 {[%clk 0:15:43]} 7. O-O {[%clk 0:15:42]}  d6 {[%clk 0:15:43]} 8. a3 {[%clk 0:14:47]}  Bg4 {[%clk 0:11:34]} 9. h3 {[%clk 0:12:21]}  Bxf3 {[%clk 0:11:34]} 10. Qxf3 {[%clk 0:12:21]}  Nd4 {[%clk 0:11:34]} 11. Qd1 {[%clk 0:12:21]}  Nxb3 {[%clk 0:11:34]} 12. cxb3 {[%clk 0:12:21]}  d5 {[%clk 0:10:43]} 13. d3 {[%clk 0:11:50]}  O-O {[%clk 0:10:43]} 14. Qf3 {[%clk 0:11:37]}  Qd6 {[%clk 0:08:57]} 15. Bg5 {[%clk 0:11:07]}  d4 {[%clk 0:07:20]} 16. Ne2 {[%clk 0:08:39]}  Nd7 {[%clk 0:06:58]} 17. Bxe7 {[%clk 0:08:39]}  Qxe7 {[%clk 0:06:58]} 18. Rac1 {[%clk 0:08:39]}  c5 {[%clk 0:06:58]} 19. Ng3 {[%clk 0:08:39]}  g6 {[%clk 0:06:58]} 20. Qg4 {[%clk 0:08:39]}  Rac8 {[%clk 0:07:05]} 21. Rc2 {[%clk 0:06:49]}  Rc6 {[%clk 0:05:03]} 22. Rfc1 {[%clk 0:06:49]}  Rfc8 {[%clk 0:05:03]} 23. Ne2 {[%clk 0:06:49]}  Qd6 {[%clk 0:05:00]} 24. f4 {[%clk 0:02:56]}  c4 {[%clk 0:02:36]} 25. bxc4 {[%clk 0:02:56]}  bxc4 {[%clk 0:02:36]} 26. Rxc4 {[%clk 0:02:56]}  Rxc4 {[%clk 0:02:36]} 27. Rxc4 {[%clk 0:02:56]}  Rxc4 {[%clk 0:02:36]} 28. dxc4 {[%clk 0:02:56]}  d3 {[%clk 0:02:36]} 29. Nc3 {[%clk 0:02:56]}  Qd4+ {[%clk 0:02:36]} 30. Kf1 {[%clk 0:02:38]}  d2 {[%clk 0:01:46]} 31. Ke2 {[%clk 0:02:38]}  Nc5 {[%clk 0:00:35]} 32. Qf3 {[%clk 0:02:38]}  Nxe4 {[%clk 0:00:35]} 33. Kd1 {[%clk 0:02:38]}  Qg1+ {[%clk 0:00:35]} 34. Kc2 {[%clk 0:02:38]}  Qc1+ {[%clk 0:00:35]} 0-1


[Site "http://www.Chess.com"]

[Event "FIDE World Rapid Chess Championship 2021"]
[White "Grischuk, Alexander"]
[Black "Gareyev, Timur"]
[WhiteFideId "4126025"]
[BlackFideId "14200937"]
[WhiteElo "2763"]
[BlackElo "2578"]
[Result "1/2-1/2"]
[Round "04"]
[TimeControl "900+10"]
[Date "2021.12.26"]
[WhiteClock "0:00:46"]
[BlackClock "0:00:33"]

1. e4 {[%clk 0:15:23]}  e5 {[%clk 0:15:26]} 2. Nf3 {[%clk 0:15:23]}  Nc6 {[%clk 0:15:26]} 3. Bb5 {[%clk 0:15:23]}  a6 {[%clk 0:15:26]} 4. Ba4 {[%clk 0:15:23]}  Nf6 {[%clk 0:15:26]} 5. O-O {[%clk 0:15:23]}  Bc5 {[%clk 0:15:26]} 6. c3 {[%clk 0:15:23]}  b5 {[%clk 0:15:26]} 7. Bb3 {[%clk 0:15:23]}  d6 {[%clk 0:15:26]} 8. d4 {[%clk 0:14:42]}  Bb6 {[%clk 0:15:30]} 9. Be3 {[%clk 0:14:42]}  Bg4 {[%clk 0:15:30]} 10. dxe5 {[%clk 0:14:44]}  dxe5 {[%clk 0:14:53]} 11. Qxd8+ {[%clk 0:05:58]}  Rxd8 {[%clk 0:11:48]} 12. Bxb6 {[%clk 0:04:15]}  cxb6 {[%clk 0:12:00]} 13. Nbd2 {[%clk 0:04:15]}  O-O {[%clk 0:12:00]} 14. Rfe1 {[%clk 0:04:15]}  Rfe8 {[%clk 0:10:15]} 15. h3 {[%clk 0:04:01]}  Be6 {[%clk 0:10:15]} 16. a4 {[%clk 0:04:01]}  Bxb3 {[%clk 0:09:01]} 17. Nxb3 {[%clk 0:02:32]}  bxa4 {[%clk 0:09:01]} 18. Rxa4 {[%clk 0:02:32]}  a5 {[%clk 0:09:01]} 19. Raa1 {[%clk 0:02:32]}  h6 {[%clk 0:09:01]} 20. Nbd2 {[%clk 0:02:32]}  b5 {[%clk 0:08:39]} 21. c4 {[%clk 0:01:52]}  Rb8 {[%clk 0:08:39]} 22. Re3 {[%clk 0:01:57]}  Re6 {[%clk 0:06:30]} 23. cxb5 {[%clk 0:01:57]}  Rxb5 {[%clk 0:06:30]} 24. Nc4 {[%clk 0:01:57]}  g6 {[%clk 0:06:30]} 25. g3 {[%clk 0:01:57]}  Kg7 {[%clk 0:06:30]} 26. Kg2 {[%clk 0:01:57]}  Rc5 {[%clk 0:06:30]} 27. Ra4 {[%clk 0:01:57]}  Rb5 {[%clk 0:05:39]} 28. Ra1 {[%clk 0:00:58]}  Nd7 {[%clk 0:05:39]} 29. Rc1 {[%clk 0:00:57]}  Rb4 {[%clk 0:03:36]} 30. Ne1 {[%clk 0:00:19]}  Nb6 {[%clk 0:03:36]} 31. Nxb6 {[%clk 0:00:19]}  Rxb6 {[%clk 0:03:36]} 32. Nd3 {[%clk 0:00:19]}  Rd6 {[%clk 0:03:36]} 33. Rc3 {[%clk 0:00:30]}  a4 {[%clk 0:01:57]} 34. Re1 {[%clk 0:00:25]}  Rb3 {[%clk 0:01:57]} 35. Rec1 {[%clk 0:00:25]}  Rxd3 {[%clk 0:01:57]} 36. Rxd3 {[%clk 0:00:25]}  Rxd3 {[%clk 0:01:57]} 37. Rxc6 {[%clk 0:00:25]}  Rd4 {[%clk 0:00:33]} 38. Kf3 {[%clk 0:00:46]}  Rb4 {[%clk 0:00:33]} 39. Ra6 {[%clk 0:00:46]}  Rb3+ {[%clk 0:00:33]} 40. Kg2 {[%clk 0:00:46]}  Rxb2 {[%clk 0:00:33]} 41. Rxa4 {[%clk 0:00:46]} 1/2-1/2


[Site "http://www.Chess.com"]

[Event "FIDE World Rapid Chess Championship 2021"]
[White "Muradli, Mahammad"]
[Black "Jobava, Baadur"]
[WhiteFideId "13409301"]
[BlackFideId "13601520"]
[WhiteElo "2285"]
[BlackElo "2679"]
[Result "0-1"]
[Round "04"]
[TimeControl "900+10"]
[Date "2021.12.26"]
[WhiteClock "0:00:08"]
[BlackClock "0:00:24"]

1. c4 {[%clk 0:15:00]}  Nf6 {[%clk 0:15:00]} 2. Nc3 {[%clk 0:15:00]}  e6 {[%clk 0:15:00]} 3. e4 {[%clk 0:15:00]}  d5 {[%clk 0:15:00]} 4. cxd5 {[%clk 0:15:00]}  exd5 {[%clk 0:15:00]} 5. e5 {[%clk 0:15:00]}  Ne4 {[%clk 0:13:43]} 6. Nf3 {[%clk 0:15:34]}  c6 {[%clk 0:13:43]} 7. d3 {[%clk 0:15:34]}  Nxc3 {[%clk 0:13:43]} 8. bxc3 {[%clk 0:15:34]}  Be7 {[%clk 0:13:43]} 9. d4 {[%clk 0:15:34]}  Bf5 {[%clk 0:13:02]} 10. Bd3 {[%clk 0:15:22]}  Qc8 {[%clk 0:13:02]} 11. O-O {[%clk 0:15:22]}  O-O {[%clk 0:13:02]} 12. Re1 {[%clk 0:15:22]}  Re8 {[%clk 0:13:02]} 13. Bg5 {[%clk 0:13:42]}  Bf8 {[%clk 0:11:39]} 14. Re3 {[%clk 0:13:42]}  Na6 {[%clk 0:11:28]} 15. Nh4 {[%clk 0:12:53]}  Bxd3 {[%clk 0:10:07]} 16. Qxd3 {[%clk 0:12:53]}  c5 {[%clk 0:10:05]} 17. Rg3 {[%clk 0:10:54]}  cxd4 {[%clk 0:10:05]} 18. cxd4 {[%clk 0:10:54]}  Nb4 {[%clk 0:10:05]} 19. Qf3 {[%clk 0:09:10]}  Re6 {[%clk 0:09:35]} 20. Bf6 {[%clk 0:09:10]}  Rc6 {[%clk 0:04:55]} 21. Qf4 {[%clk 0:09:16]}  g6 {[%clk 0:03:26]} 22. a3 {[%clk 0:07:19]}  Na2 {[%clk 0:03:11]} 23. Re1 {[%clk 0:06:07]}  Rc1 {[%clk 0:02:33]} 24. Re3 {[%clk 0:02:28]}  Rxe1+ {[%clk 0:02:33]} 25. Rxe1 {[%clk 0:02:28]}  Nc3 {[%clk 0:02:33]} 26. g4 {[%clk 0:02:28]}  Ne4 {[%clk 0:02:05]} 27. Rxe4 {[%clk 0:01:30]}  dxe4 {[%clk 0:01:42]} 28. d5 {[%clk 0:01:30]}  e3 {[%clk 0:01:42]} 29. fxe3 {[%clk 0:01:30]}  Qc1+ {[%clk 0:01:42]} 30. Kg2 {[%clk 0:01:30]}  Qd2+ {[%clk 0:01:55]} 31. Kg3 {[%clk 0:00:43]}  Qxd5 {[%clk 0:00:47]} 32. Nf5 {[%clk 0:00:43]}  Qc5 {[%clk 0:00:47]} 33. Qg5 {[%clk 0:00:43]}  Re8 {[%clk 0:00:47]} 34. Kg2 {[%clk 0:00:43]}  Re6 {[%clk 0:00:47]} 35. Nh6+ {[%clk 0:00:43]}  Bxh6 {[%clk 0:00:47]} 36. Qxh6 {[%clk 0:00:43]}  Qf8 {[%clk 0:00:26]} 37. Qf4 {[%clk 0:00:14]}  Qxa3 {[%clk 0:00:30]} 38. Qd4 {[%clk 0:00:13]}  Re8 {[%clk 0:00:30]} 39. Qd7 {[%clk 0:00:13]}  Qa2+ {[%clk 0:00:30]} 40. Kg3 {[%clk 0:00:13]}  Qe6 {[%clk 0:00:30]} 41. Qxb7 {[%clk 0:00:13]}  a6 {[%clk 0:00:30]} 42. Qb4 {[%clk 0:00:13]}  h6 {[%clk 0:00:30]} 43. Qf4 {[%clk 0:00:13]}  Kh7 {[%clk 0:00:30]} 44. h4 {[%clk 0:00:13]}  Rc8 {[%clk 0:00:35]} 45. h5 {[%clk 0:00:03]}  g5 {[%clk 0:00:30]} 46. Qe4+ {[%clk 0:00:25]}  Kg8 {[%clk 0:00:30]} 47. Qb7 {[%clk 0:00:25]}  Rc4 {[%clk 0:00:30]} 48. Qa8+ {[%clk 0:00:01]}  Qc8 {[%clk 0:00:21]} 49. Qf3 {[%clk 0:00:01]}  a5 {[%clk 0:00:21]} 50. e6 {[%clk 0:00:01]}  Qxe6 {[%clk 0:00:21]} 51. Bd4 {[%clk 0:00:01]}  a4 {[%clk 0:00:21]} 52. Qa8+ {[%clk 0:00:01]}  Qc8 {[%clk 0:00:21]} 53. Qf3 {[%clk 0:00:01]}  Qd8 {[%clk 0:00:21]} 54. Qe4 {[%clk 0:00:01]}  a3 {[%clk 0:00:21]} 55. Qd3 {[%clk 0:00:08]}  Qc7+ {[%clk 0:00:24]} 56. Kh3 {[%clk 0:00:08]}  Rc2 {[%clk 0:00:24]} 57. Be5 {[%clk 0:00:08]}  Qxe5 {[%clk 0:00:24]} 58. Qxc2 {[%clk 0:00:08]}  Qxe3+ {[%clk 0:00:24]} 59. Kg2 {[%clk 0:00:08]}  Qd4 {[%clk 0:00:24]} 0-1


[Site "http://www.Chess.com"]

[Event "FIDE World Rapid Chess Championship 2021"]
[White "Svane, Rasmus"]
[Black "Giri, Anish"]
[WhiteFideId "4657101"]
[BlackFideId "24116068"]
[WhiteElo "2677"]
[BlackElo "2767"]
[Result "0-1"]
[Round "04"]
[TimeControl "900+10"]
[Date "2021.12.26"]
[WhiteClock "0:01:28"]
[BlackClock "0:01:25"]

1. Nf3 {[%clk 0:15:17]}  c5 {[%clk 0:15:00]} 2. c4 {[%clk 0:15:17]}  Nf6 {[%clk 0:15:00]} 3. Nc3 {[%clk 0:15:17]}  e6 {[%clk 0:15:00]} 4. e3 {[%clk 0:15:17]}  Nc6 {[%clk 0:15:00]} 5. d4 {[%clk 0:15:17]}  d5 {[%clk 0:15:00]} 6. cxd5 {[%clk 0:15:17]}  Nxd5 {[%clk 0:15:00]} 7. Bd3 {[%clk 0:15:17]}  Be7 {[%clk 0:15:00]} 8. O-O {[%clk 0:15:17]}  O-O {[%clk 0:15:00]} 9. a3 {[%clk 0:14:56]}  cxd4 {[%clk 0:15:20]} 10. exd4 {[%clk 0:14:56]}  Bf6 {[%clk 0:15:20]} 11. Bc2 {[%clk 0:14:56]}  Nce7 {[%clk 0:15:20]} 12. Qd3 {[%clk 0:14:56]}  Ng6 {[%clk 0:13:58]} 13. Ne4 {[%clk 0:14:27]}  b6 {[%clk 0:13:18]} 14. Neg5 {[%clk 0:12:41]}  a5 {[%clk 0:13:18]} 15. Qe4 {[%clk 0:11:28]}  Ba6 {[%clk 0:11:33]} 16. Re1 {[%clk 0:11:28]}  Rc8 {[%clk 0:11:33]} 17. h4 {[%clk 0:11:28]}  Bxg5 {[%clk 0:11:11]} 18. Bxg5 {[%clk 0:10:16]}  Nf6 {[%clk 0:11:11]} 19. Bxf6 {[%clk 0:10:16]}  gxf6 {[%clk 0:11:11]} 20. Bb3 {[%clk 0:09:07]}  f5 {[%clk 0:10:04]} 21. Qe3 {[%clk 0:08:50]}  Nxh4 {[%clk 0:10:04]} 22. d5 {[%clk 0:08:59]}  exd5 {[%clk 0:07:17]} 23. Nxh4 {[%clk 0:07:36]}  Qxh4 {[%clk 0:06:50]} 24. Qxb6 {[%clk 0:07:36]}  Rb8 {[%clk 0:06:50]} 25. Qxa6 {[%clk 0:07:36]}  Rxb3 {[%clk 0:06:50]} 26. Qxa5 {[%clk 0:07:36]}  Rxb2 {[%clk 0:06:50]} 27. Rf1 {[%clk 0:07:36]}  Rd8 {[%clk 0:07:04]} 28. Rad1 {[%clk 0:05:41]}  Ra2 {[%clk 0:04:14]} 29. Rxd5 {[%clk 0:05:23]}  Rxd5 {[%clk 0:04:14]} 30. Qxd5 {[%clk 0:05:23]}  Rxa3 {[%clk 0:04:14]} 31. Qxf5 {[%clk 0:05:23]}  Qd4 {[%clk 0:04:28]} 32. Qg5+ {[%clk 0:04:10]}  Kf8 {[%clk 0:04:28]} 33. Qc1 {[%clk 0:04:10]}  Ra2 {[%clk 0:04:28]} 34. Qb1 {[%clk 0:04:10]}  Rd2 {[%clk 0:03:02]} 35. Qxh7 {[%clk 0:03:09]}  Rd1 {[%clk 0:03:02]} 36. Qh6+ {[%clk 0:03:09]}  Kg8 {[%clk 0:03:02]} 37. Rxd1 {[%clk 0:03:09]}  Qxd1+ {[%clk 0:03:02]} 38. Kh2 {[%clk 0:03:09]}  Qd4 {[%clk 0:03:02]} 39. Qg5+ {[%clk 0:03:09]}  Kf8 {[%clk 0:03:02]} 40. Kg3 {[%clk 0:03:09]}  f6 {[%clk 0:03:02]} 41. Qf4 {[%clk 0:02:44]}  Qd3+ {[%clk 0:02:20]} 42. Qf3 {[%clk 0:02:38]}  Qg6+ {[%clk 0:02:20]} 43. Qg4 {[%clk 0:02:38]}  Qd3+ {[%clk 0:02:20]} 44. Kh2 {[%clk 0:02:38]}  Qd6+ {[%clk 0:02:20]} 45. Qg3 {[%clk 0:02:38]}  Qd4 {[%clk 0:02:20]} 46. Qf3 {[%clk 0:02:38]}  Kf7 {[%clk 0:02:20]} 47. g3 {[%clk 0:02:38]}  Kg6 {[%clk 0:01:41]} 48. Kh3 {[%clk 0:02:42]}  f5 {[%clk 0:01:40]} 49. Qc6+ {[%clk 0:02:42]}  Kg7 {[%clk 0:01:40]} 50. Kg2 {[%clk 0:02:42]}  Qe5 {[%clk 0:01:40]} 51. Qc4 {[%clk 0:02:42]}  Qd6 {[%clk 0:01:40]} 52. Qb3 {[%clk 0:02:42]}  Qc6+ {[%clk 0:01:40]} 53. Qf3 {[%clk 0:02:42]}  Qc5 {[%clk 0:01:40]} 54. Kh3 {[%clk 0:02:42]}  Kg6 {[%clk 0:01:40]} 55. Qe2 {[%clk 0:02:42]}  Qc6 {[%clk 0:01:40]} 56. f3 {[%clk 0:02:42]}  Kf7 {[%clk 0:01:53]} 57. Qd3 {[%clk 0:02:37]}  Qe6 {[%clk 0:01:53]} 58. Qc3 {[%clk 0:02:27]}  Qh6+ {[%clk 0:01:28]} 59. Kg2 {[%clk 0:02:18]}  Qe6 {[%clk 0:01:28]} 60. Qd2 {[%clk 0:02:18]}  Kg6 {[%clk 0:01:28]} 61. Kh3 {[%clk 0:02:18]}  Kf7 {[%clk 0:01:28]} 62. Qg5 {[%clk 0:02:18]}  Qd5 {[%clk 0:01:28]} 63. Qh5+ {[%clk 0:02:18]}  Kg7 {[%clk 0:01:28]} 64. Kh4 {[%clk 0:02:18]}  Qc4+ {[%clk 0:01:28]} 65. Kg5 {[%clk 0:02:01]}  Qe6 {[%clk 0:01:25]} 66. Kf4 {[%clk 0:02:01]}  Qd6+ {[%clk 0:01:25]} 67. Kxf5 {[%clk 0:02:01]}  Qd7+ {[%clk 0:01:25]} 68. Kg5 {[%clk 0:02:01]}  Qd2+ {[%clk 0:00:20]} 69. Kg4 {[%clk 0:01:42]}  Qd4+ {[%clk 0:00:20]} 70. Kh3 {[%clk 0:01:42]}  Qd1 {[%clk 0:00:20]} 71. Qg5+ {[%clk 0:01:53]}  Kh7 {[%clk 0:00:47]} 72. Qf5+ {[%clk 0:01:53]}  Kg7 {[%clk 0:00:47]} 73. Qe5+ {[%clk 0:01:53]}  Kh7 {[%clk 0:00:47]} 74. Kg4 {[%clk 0:01:53]}  Qb3 {[%clk 0:00:47]} 75. Qf5+ {[%clk 0:01:53]}  Kg7 {[%clk 0:00:47]} 76. Kh5 {[%clk 0:01:53]}  Kh8 {[%clk 0:00:47]} 77. Qf6+ {[%clk 0:01:53]}  Kh7 {[%clk 0:00:47]} 78. Qe7+ {[%clk 0:01:53]}  Kh8 {[%clk 0:00:47]} 79. Qe5+ {[%clk 0:01:53]}  Kh7 {[%clk 0:00:47]} 80. Qf5+ {[%clk 0:01:53]}  Kh8 {[%clk 0:00:47]} 81. g4 {[%clk 0:01:28]}  Qd5 {[%clk 0:01:25]} 0-1


[Site "http://www.Chess.com"]

[Event "FIDE World Rapid Chess Championship 2021"]
[White "Aronian, Levon"]
[Black "Firouzja, Alireza"]
[WhiteFideId "13300474"]
[BlackFideId "12573981"]
[WhiteElo "2728"]
[BlackElo "2656"]
[Result "1/2-1/2"]
[Round "04"]
[TimeControl "900+10"]
[Date "2021.12.26"]
[WhiteClock "0:00:09"]
[BlackClock "0:00:39"]

1. e4 {[%clk 0:15:53]}  c6 {[%clk 0:15:44]} 2. d4 {[%clk 0:15:53]}  d5 {[%clk 0:15:44]} 3. exd5 {[%clk 0:15:53]}  cxd5 {[%clk 0:15:44]} 4. Bd3 {[%clk 0:15:53]}  Nf6 {[%clk 0:15:44]} 5. c3 {[%clk 0:15:53]}  Bg4 {[%clk 0:15:44]} 6. Qb3 {[%clk 0:15:53]}  Qc7 {[%clk 0:15:44]} 7. h3 {[%clk 0:15:53]}  Bd7 {[%clk 0:15:44]} 8. Ne2 {[%clk 0:15:53]}  Nc6 {[%clk 0:15:44]} 9. Bf4 {[%clk 0:15:53]}  e5 {[%clk 0:14:46]} 10. dxe5 {[%clk 0:15:41]}  Nxe5 {[%clk 0:14:46]} 11. Bxe5 {[%clk 0:15:41]}  Qxe5 {[%clk 0:14:46]} 12. Nd2 {[%clk 0:15:41]}  Bc5 {[%clk 0:12:48]} 13. Nf3 {[%clk 0:16:06]}  Qd6 {[%clk 0:12:48]} 14. O-O {[%clk 0:16:06]}  O-O-O {[%clk 0:11:13]} 15. Ned4 {[%clk 0:14:45]}  Nh5 {[%clk 0:08:23]} 16. Bf5 {[%clk 0:14:43]}  Bxf5 {[%clk 0:08:23]} 17. Nxf5 {[%clk 0:13:57]}  Qf6 {[%clk 0:08:23]} 18. N5d4 {[%clk 0:11:45]}  Nf4 {[%clk 0:06:36]} 19. Qc2 {[%clk 0:11:45]}  h5 {[%clk 0:06:36]} 20. h4 {[%clk 0:11:45]}  Rhe8 {[%clk 0:04:22]} 21. g3 {[%clk 0:11:45]}  Ne6 {[%clk 0:03:37]} 22. Rad1 {[%clk 0:09:41]}  Kb8 {[%clk 0:03:37]} 23. Kg2 {[%clk 0:09:41]}  a6 {[%clk 0:03:37]} 24. Qf5 {[%clk 0:09:01]}  Qxf5 {[%clk 0:02:29]} 25. Nxf5 {[%clk 0:09:01]}  g6 {[%clk 0:02:29]} 26. N5d4 {[%clk 0:07:46]}  Nxd4 {[%clk 0:02:36]} 27. cxd4 {[%clk 0:07:46]}  Bb6 {[%clk 0:02:36]} 28. Ne5 {[%clk 0:04:03]}  Re7 {[%clk 0:02:52]} 29. Rd3 {[%clk 0:03:43]}  Rc8 {[%clk 0:02:57]} 30. Re1 {[%clk 0:03:43]}  Rcc7 {[%clk 0:02:57]} 31. Ree3 {[%clk 0:03:43]}  Kc8 {[%clk 0:02:49]} 32. Rf3 {[%clk 0:02:30]}  Kb8 {[%clk 0:02:21]} 33. a4 {[%clk 0:02:30]}  Ka7 {[%clk 0:02:21]} 34. b3 {[%clk 0:02:30]}  Ka8 {[%clk 0:01:11]} 35. Rf4 {[%clk 0:02:04]}  a5 {[%clk 0:00:44]} 36. Rdf3 {[%clk 0:02:04]}  Bxd4 {[%clk 0:00:44]} 37. Nxg6 {[%clk 0:02:04]}  fxg6 {[%clk 0:00:44]} 38. Rxd4 {[%clk 0:02:04]}  Red7 {[%clk 0:00:44]} 39. Rfd3 {[%clk 0:00:24]}  Rc5 {[%clk 0:00:50]} 40. b4 {[%clk 0:00:24]}  axb4 {[%clk 0:00:50]} 41. Rxb4 {[%clk 0:00:21]}  Kb8 {[%clk 0:00:50]} 42. Rb6 {[%clk 0:00:21]}  Rc6 {[%clk 0:00:50]} 43. Rb5 {[%clk 0:00:21]}  d4 {[%clk 0:00:50]} 44. Rb4 {[%clk 0:00:21]}  Rcd6 {[%clk 0:00:50]} 45. f4 {[%clk 0:00:21]}  Ka7 {[%clk 0:00:50]} 46. Kf3 {[%clk 0:00:21]}  Ka6 {[%clk 0:00:50]} 47. Rb5 {[%clk 0:00:21]}  Rc6 {[%clk 0:00:50]} 48. Ke4 {[%clk 0:00:21]}  Rc4 {[%clk 0:00:16]} 49. Re5 {[%clk 0:00:09]}  Rd6 {[%clk 0:00:48]} 50. f5 {[%clk 0:00:09]}  Rc1 {[%clk 0:00:48]} 51. fxg6 {[%clk 0:00:09]}  Re1+ {[%clk 0:00:48]} 52. Kf5 {[%clk 0:00:09]}  Rxe5+ {[%clk 0:00:48]} 53. Kxe5 {[%clk 0:00:09]}  Rxg6 {[%clk 0:00:48]} 54. Kxd4 {[%clk 0:00:09]}  Rg4+ {[%clk 0:00:48]} 55. Ke5 {[%clk 0:00:09]}  Rxa4 {[%clk 0:00:48]} 56. Kf6 {[%clk 0:00:09]}  Rg4 {[%clk 0:00:39]} 1/2-1/2


[Site "http://www.Chess.com"]